[Event "Reykjavik Open 2022"]
[Site "Reykjavik"]
[Date "2022.04.09"]
[Round "5.14"]
[White "Sigamoney, Cyril S"]
[Black "Hjartarson, Johann"]
[Result "0-1"]
[ECO "A43"]
[WhiteElo "1960"]
[BlackElo "2470"]
[Annotator "TA"]
[PlyCount "116"]
[EventDate "2022.04.06"]
[EventCountry "ISL"]
[SourceTitle "playchess.com"]
[Source "ChessBase"]
[SourceQuality "1"]
[TimeControl "40/5400+30:1800+30"]

{[%evp 9,116,33,29,-31,-2,-8,0,0,28,0,5,0,0,0,0,0,9,0,0,12,3,14,9,0,0,-7,27,-13,36,-26,0,0,0,-96,-98,-96,-96,-100,-92,-104,-62,-61,-61,-61,-61,-64,-61,-61,-61,-61,-61,-61,-61,-61,-61,-82,-44,-61,-61,-65,-65,-79,-61,-84,-43,-55,-45,-76,-87,-611,-580,-556,-137,-130,-113,-120,-108,-139,-129,-285,-254,-424,-458,-497,-496,-478,-397,-780,-782,-666,-335,-1769,-2153,-2567,-2143,-29986,-29986,-29987,-29986,-29986,-29987,-29987,-29988,-29988,-29989,-29991,-29992,-29992,-29993]} 1. d4 {[%emt 0:00:18]} Nf6 {[%emt 0:00:11]} 2. Bg5 {[%emt 0:00:25]} c5 {[%emt 0:00:49]} 3. d5 {[%emt 0:00:17]} g6 {[%emt 0:02:29]} 4. Nc3 {[%emt 0:00:37]} d6 {[%emt 0:01:35]} 5. e4 {[%emt 0:00:17]} Bg7 {[%emt 0:00:11]} 6. f4 {[%emt 0:18:43] A43: Schmid Benoni.} ({White should try} 6. Nf3 $11) 6... O-O {[%emt 0:03:30]} (6... Qa5 $5 {[%cal Rf6e4]} 7. Qd2 h6 8. Bxf6 Bxf6 $11) 7. Nf3 {[%emt 0:00:06]} Qb6 {[%emt 0:01:35]} 8. Rb1 {[%emt 0:07:01] The position is equal.} e6 {[%emt 0:00:31] [#]} (8... c4 $5 {[%cal Rf6g4]}) 9. Bxf6 $146 {[%emt 0:11:45]} ({Predecessor:} 9. Nd2 exd5 10. Bxf6 Bxf6 11. Nxd5 Qd8 12. c3 Bg7 13. Bc4 a6 14. a4 Kh8 15. O-O {½-½ (33) Tauaf,R (1993)-Gawehns,K (2443) IECC email 2003}) 9... Bxf6 {[%emt 0:01:43]} 10. Bc4 {[%emt 0:05:51]} Qb4 {[%emt 0:04:46][%csl LRc3,LRc4]} 11. Nd2 {[%emt 0:31:24]} Bxc3 {[%emt 0:03:59]} 12. bxc3 {[%emt 0:00:11]} Qxc3 {[%emt 0:00:07]} 13. O-O {[%emt 0:00:16]} exd5 {[%emt 0:15:20]} 14. Bxd5 {[%emt 0:00:18]} Nc6 {[%emt 0:00:08]} 15. Rb3 {[%emt 0:02:18]} Qf6 {[%emt 0:06:18]} 16. Kh1 {[%emt 0:04:13][%cal Of4f5]} Nb4 {[%emt 0:04:23]} 17. Bc4 {[%emt 0:09:46]} Rb8 {[%emt 0:03:12]} (17... d5 $5 18. exd5 (18. Bxd5 Nxd5 19. exd5 Qd4 $11) 18... b5 19. Bxb5 Bf5 $11) 18. a4 {[%emt 0:01:32][%mdl 1024] White has compensation.} (18. f5 $5 gxf5 19. Rg3+ Kh8 20. exf5 $11) 18... Be6 {[%emt 0:03:23]} (18... d5 $11 19. exd5 Bf5) 19. Rg3 {[%emt 0:01:21]} (19. f5 $1 $14 Bxc4 20. Nxc4) 19... Kh8 {[%emt 0:04:15]} 20. c3 {[%emt 0:00:24]} Nc6 $1 {[%emt 0:00:47]} 21. Qc1 {[%emt 0:01:37]} (21. f5 $11 gxf5 22. exf5 Bxc4 23. Nxc4) 21... Bxc4 $17 {[%emt 0:03:31]} 22. Nxc4 {[%emt 0:00:18]} Qe6 {[%emt 0:00:15][%csl LRc4,LRe4]} 23. Nd2 {[%emt 0:00:12]} f5 {[%emt 0:02:13]} 24. Re3 {[%emt 0:00:24]} d5 {[%emt 0:03:11][%cal Rd5e4] &Nero is more active.} 25. e5 {[%emt 0:00:20]} b6 {[%emt 0:00:18]} 26. Nf3 {[%emt 0:00:20]} h6 {[%emt 0:00:20]} 27. Rd1 {[%emt 0:01:00]} Rbd8 {[%emt 0:02:35]} 28. Qb2 {[%emt 0:00:56]} Rd7 {[%emt 0:02:23]} 29. Red3 {[%emt 0:00:11]} Rfd8 {[%emt 0:00:26]} 30. Qf2 {[%emt 0:00:32]} Kg7 {[%emt 0:01:06][%cal Od5d4]} 31. h3 {[%emt 0:00:08]} Ne7 {[%emt 0:08:12]} 32. Rg1 {[%emt 0:00:49]} Qc6 {[%emt 0:01:33]} 33. Qh4 {[%emt 0:01:35]} Rf8 {[%emt 0:01:03]} 34. Re1 {[%emt 0:00:59]} Qe6 {[%emt 0:06:44]} 35. Red1 {[%emt 0:00:19]} Rc7 {[%emt 0:00:39]} 36. Kh2 {[%emt 0:00:34]} a6 {[%emt 0:00:30]} 37. Qg3 {[%emt 0:00:04]} Rb8 {[%emt 0:01:53]} 38. Nh4 {[%emt 0:00:10]} b5 {[%emt 0:01:15]} 39. Rxd5 $2 {[%emt 0:01:00][%mdl 8192]} Nxd5 $19 {[%emt 0:00:54]} 40. Rxd5 {[%emt 0:00:00]} Rb6 {[%emt 0:00:00] Inhibits Rd6.} (40... Qxd5 $19 {has better winning chances.} 41. Qxg6+ Kh8 42. axb5 axb5 43. Nxf5 Qd8) 41. a5 $17 {[%emt 0:12:24]} Rbc6 {[%emt 0:05:17]} (41... Qxd5 42. axb6 Rc6 43. Nxf5+ Kh8 44. b7 $1 $18) 42. Qd3 {[%emt 0:02:29]} c4 {[%emt 0:03:50]} 43. Qd4 {[%emt 0:05:08]} Kh7 {[%emt 0:00:24][%cal Ob5b4] Strongly threatening ...b4!} 44. Rd8 $2 {[%emt 0:11:26]} (44. Nf3 $17) 44... b4 $19 {[%emt 0:00:42][%cal Bb5b4,Bb4b3][%mdl 32]} 45. Rb8 $2 {[%emt 0:00:30]} (45. g4 {is a better defense.} fxg4 46. Rb8 g3+ 47. Kg2) 45... Rd7 {[%emt 0:00:40]} 46. Qe3 {[%emt 0:00:34]} b3 {[%emt 0:06:06]} 47. Nf3 {[%emt 0:00:29] aiming for Nd4.} Qd5 {[%emt 0:02:33]} 48. Nd4 $2 {[%emt 0:01:48] [#]} (48. Qe1 g5 49. fxg5) 48... Rcc7 $1 {[%emt 0:00:28] And now ...Rb7 would win.} 49. Rb6 {[%emt 0:00:26]} Qxa5 {[%emt 0:03:11]} 50. Rxg6 {[%emt 0:00:58]} (50. Ne6 Rc8 51. Rd6) 50... Kxg6 {[%emt 0:02:22]} 51. e6 {[%emt 0:00:45] [#]} Rxd4 $1 {[%emt 0:02:25]} 52. Qxd4 {[%emt 0:00:06]} (52. e7 Re4) 52... Qc5 {[%emt 0:00:46] Black mates.} 53. Qd8 {[%emt 0:00:34]} Qe7 {[%emt 0:00:32]} 54. Qg8+ {[%emt 0:00:12]} Qg7 {[%emt 0:00:26]} 55. Qe8+ {[%emt 0:00:09]} Kh7 {[%emt 0:00:12]} 56. Qh5 {[%emt 0:01:06]} b2 {[%emt 0:00:33]} 57. Qxf5+ {[%emt 0:00:11]} Qg6 {[%emt 0:00:08]} 58. Qe5 {[%emt 0:00:17]} Rg7 {[%emt 0:00:14] Weighted Error Value: White=0.66/Black=0.25 (precise)} 0-1

[Event "Reykjavik Open 2022"]
[Site "Reykjavik"]
[Date "2022.04.09"]
[Round "5.15"]
[White "Berdnyk, Mariia"]
[Black "Yoo, Christopher Woojin"]
[Result "0-1"]
[ECO "D20"]
[WhiteElo "2287"]
[BlackElo "2514"]
[Annotator "TA"]
[PlyCount "102"]
[EventDate "2022.04.06"]
[EventCountry "ISL"]
[SourceTitle "playchess.com"]
[Source "ChessBase"]
[SourceQuality "1"]
[TimeControl "40/5400+30:1800+30"]

{[%evp 9,102,0,0,0,0,0,-7,0,0,-15,-4,-20,-14,-83,-87,-108,-122,-104,-105,-110,-97,-99,-73,-59,-78,-68,-15,-27,-15,-26,-12,-7,-12,-65,-55,-58,-56,-55,-55,-70,-29,-46,-46,-103,-115,-118,-111,-114,-104,-100,-104,-137,-112,-256,-257,-247,-239,-240,-258,-247,-266,-261,-268,-260,-268,-262,-199,-199,-199,-274,-253,-443,-410,-594,-608,-29965,-29967,-29950,-10162,-5197,-4652,-29978,-29979,-29979,-29980,-29984,-29985,-29985,-29986,-29986,-29984,-29989,-29990,-29990,-29991]} 1. d4 {[%emt 0:00:03]} d5 {[%emt 0:00:06]} 2. c4 {[%emt 0:00:09]} dxc4 {[%emt 0:00:07]} 3. e3 {[%emt 0:02:41]} e5 {[%emt 0:00:10]} 4. Bxc4 {[%emt 0:01:39]} Nc6 {[%emt 0:00:12]} 5. d5 {[%emt 0:05:33]} Na5 $1 {[%emt 0:00:09]} ({Don't take} 5... Bb4+ 6. Nc3 Bxc3+ 7. bxc3 $16) 6. Qa4+ {[%emt 0:02:15] D20: Queen's Gambit Accepted: 3 e3 and 3 e4.} c6 {[%emt 0:00:08]} 7. dxc6 {[%emt 0:00:09]} Nxc6 {[%emt 0:00:16]} 8. Nf3 {[%emt 0:04:37] The position is equal.} Bd6 {[%emt 0:00:27]} 9. e4 {[%emt 0:06:27]} Nf6 {[%emt 0:11:16] [#]} 10. O-O $146 {[%emt 0:04:55]} ({Predecessor:} 10. Bg5 h6 11. Bxf6 Qxf6 12. Nc3 O-O 13. O-O Bg4 14. Nd5 Qg6 15. Nh4 Qh5 16. g3 {0-1 (33) Slami,Z (1935)-Karpatchev,A (2478) Baghdad 2018}) 10... O-O {[%emt 0:03:29]} 11. h3 {[%emt 0:04:25]} (11. Be3 $11 {remains equal.}) 11... Nxe4 $17 {[%emt 0:07:32]} 12. Bxf7+ {[%emt 0:02:54]} Rxf7 {[%emt 0:00:42]} 13. Qxe4 {[%emt 0:00:05]} Bf5 {[%emt 0:00:27]} 14. Qc4 {[%emt 0:01:30]} Be7 {[%emt 0:01:47] Inhibits Ng5.} 15. Qb3 {[%emt 0:02:41]} Bd3 {[%emt 0:07:20] A strong pair of Bishops.} 16. Ng5 {[%emt 0:01:14]} Bxg5 {[%emt 0:00:57] Active counter play!} 17. Bxg5 {[%emt 0:00:01]} Qd7 {[%emt 0:13:05]} (17... Qxg5 $15 18. Qxd3 Rd8) 18. Rd1 $11 {[%emt 0:00:27]} e4 {[%emt 0:00:31] [#] ...Nd4 is the strong threat.} 19. Nc3 {[%emt 0:01:00][%cal Oc3e4] Threatens to win with Nxe4!} Nd4 {[%emt 0:02:07]} 20. Qd5 {[%emt 0:08:18]} Ne2+ {[%emt 0:00:42]} 21. Kh1 {[%emt 0:01:35]} (21. Kh2 $11 Qc7+ 22. Kh1) 21... Qxd5 $15 {[%emt 0:03:02]} 22. Nxd5 {[%emt 0:00:01]} Rxf2 {[%emt 0:00:08]} 23. Nb4 {[%emt 0:03:35]} Bc4 {[%emt 0:05:49]} 24. b3 {[%emt 0:09:34]} Be6 {[%emt 0:03:09]} 25. Rd6 {[%emt 0:00:30]} Re8 {[%emt 0:03:16]} 26. Be3 {[%emt 0:02:53]} (26. Re1 $15) 26... Ng3+ $17 {[%emt 0:00:47]} 27. Kh2 {[%emt 0:01:47] And now Rxe6 would win.} Re2 $36 {[%emt 0:01:19][%mdl 2048] Keeping White busy.} 28. Kxg3 {[%emt 0:16:45]} Rxe3+ {[%emt 0:00:10]} 29. Kf2 {[%emt 0:00:35]} Rc3 {[%emt 0:00:08]} 30. Re1 {[%emt 0:00:26]} e3+ {[%emt 0:03:36]} 31. Rxe3 {[%emt 0:00:42] This costs White the game.} (31. Kg3 $17 {was necessary.}) 31... Rxe3 $19 {[%emt 0:00:06]} 32. Kxe3 $17 {[%emt 0:00:00][%mdl 4096] Endgame KRB-KRN} a5 {[%emt 0:02:32]} 33. Nd3 {[%emt 0:02:18]} Bxb3+ $1 {[%emt 0:00:10]} 34. Kd4 {[%emt 0:03:56]} Bxa2 {[%emt 0:00:22]} 35. Kc5 {[%emt 0:00:11]} Bb1 {[%emt 0:04:21]} 36. Kb5 {[%emt 0:01:36]} Re2 {[%emt 0:04:37]} 37. g4 {[%emt 0:02:07]} Bxd3+ {[%emt 0:05:45]} 38. Rxd3 $19 {[%emt 0:00:06] KR-KR} Ra2 {[%emt 0:00:06]} 39. Kb6 {[%emt 0:01:45]} (39. Rf3 {might work better.}) 39... a4 {[%emt 0:00:11][%cal Ba5a4,Ba4a3,Ba3a2][%mdl 32] aiming for ...Rb2+.} 40. Kxb7 $2 {[%emt 0:00:00]} (40. Kb5 {was called for.}) 40... a3 {[%emt 0:00:00]} 41. Kc6 {[%emt 0:00:56] [#]} (41. Kb6 $142 Ra1 42. Ka5) 41... Ra1 $1 {[%emt 0:02:01]} ({Not} 41... Rc2+ 42. Kd5 $17) 42. Kd7 {[%emt 0:19:09]} a2 {[%emt 0:02:09]} 43. Rd2 {[%emt 0:00:03]} Kf7 {[%emt 0:00:09]} 44. h4 {[%emt 0:00:03]} Kf6 {[%emt 0:02:34] ( -> ...Ke5)} 45. Kd8 {[%emt 0:00:27]} Ke5 {[%emt 0:03:01] Black mates.} 46. Ke7 {[%emt 0:07:34]} Kf4 {[%emt 0:00:50]} 47. Kf7 {[%emt 0:01:41]} Ke3 {[%emt 0:00:08]} 48. Rxa2 {[%emt 0:00:20]} Rxa2 {[%emt 0:00:05]} 49. Kxg7 {[%emt 0:00:04]} Ra7+ {[%emt 0:00:10]} 50. Kh6 {[%emt 0:00:04]} Kf4 {[%emt 0:00:06]} 51. g5 {[%emt 0:00:23]} Kf5 {[%emt 0:00:09] Weighted Error Value: White=0.46/Black=0.07 (flawless)} 0-1

[Event "Reykjavik Open 2022"]
[Site "Reykjavik"]
[Date "2022.04.09"]
[Round "5.16"]
[White "Maze, Sebastien"]
[Black "Doluhanova, Evgeniya"]
[Result "1-0"]
[ECO "E12"]
[WhiteElo "2527"]
[BlackElo "2255"]
[Annotator "TA"]
[PlyCount "107"]
[EventDate "2022.04.06"]
[EventCountry "ISL"]
[SourceTitle "playchess.com"]
[Source "ChessBase"]
[SourceQuality "1"]
[TimeControl "40/5400+30:1800+30"]

{[%evp 13,107,-6,8,-70,0,0,0,0,0,0,30,22,107,113,99,104,103,93,86,86,120,113,122,101,113,114,121,124,121,118,105,104,105,106,135,110,122,101,167,164,159,164,170,69,127,135,195,83,210,17,14,14,18,14,14,29,14,14,14,8,14,14,16,0,16,0,125,18,24,0,68,0,272,0,96,79,153,153,166,162,246,249,5706,5510,5393,5193,2733,2686,2409,1580,1750,1418,2305,2260,1325,1226]} 1. d4 {[%emt 0:01:37]} Nf6 {[%emt 0:01:34]} 2. c4 {[%emt 0:00:05]} e6 {[%emt 0:00:03]} 3. Nf3 {[%emt 0:00:03]} b6 {[%emt 0:00:03]} 4. a3 {[%emt 0:00:23]} Bb7 {[%emt 0:00:20]} 5. Nc3 {[%emt 0:00:07]} d5 {[%emt 0:00:20]} 6. Bg5 {[%emt 0:00:10]} Be7 {[%emt 0:00:28]} 7. Qa4+ {[%emt 0:00:07]} c6 {[%emt 0:01:39] [#]} 8. Qc2 $146 {[%emt 0:06:52] E12: Queen's Indian: Unusual White 4th moves, 4 a3, 4 Nc3 Bb7 5 a3 and 4 Nc3 Bb7 .} (8. cxd5 $11 Nxd5 9. Nxd5 Bxg5 10. Nc3) ({Predecessor:} 8. cxd5 Nxd5 9. Bxe7 Qxe7 10. Nxd5 exd5 11. e3 O-O 12. Rc1 c5 13. Be2 Nd7 14. O-O Rfd8 15. Rfd1 a5 {1-0 (34) Mamedyarov,S (2817)-Korobov,A (2698) St Petersburg 2018}) 8... Nbd7 {[%emt 0:00:51]} (8... dxc4 $15 9. e4 b5) 9. cxd5 $11 {[%emt 0:02:16]} Nxd5 {[%emt 0:01:03]} 10. Bxe7 {[%emt 0:00:06] The position is equal.} Qxe7 {[%emt 0:00:05]} 11. Nxd5 {[%emt 0:00:46]} cxd5 {[%emt 0:01:46]} 12. e3 {[%emt 0:00:49] And now Qc7 would win.} O-O {[%emt 0:01:00]} (12... Rc8 $11 13. Qa4 a6) 13. Qc7 $1 $16 {[%emt 0:07:43]} Bc8 {[%emt 0:01:06]} 14. Rc1 {[%emt 0:03:54]} Qd8 {[%emt 0:02:31]} 15. Qxd8 {[%emt 0:09:10]} Rxd8 {[%emt 0:00:08]} 16. Rc7 {[%emt 0:00:02]} Nb8 {[%emt 0:05:21]} 17. Ne5 {[%emt 0:27:36][%cal Bf3e5,Be5d3,Bd3f4][%mdl 32]} Bd7 {[%emt 0:12:09]} 18. Kd2 {[%emt 0:07:22]} Be8 {[%emt 0:00:55]} 19. Be2 $1 {[%emt 0:00:57]} f6 {[%emt 0:00:39]} 20. Nd3 {[%emt 0:00:09] &Bianco is much more active.} Na6 {[%emt 0:08:01]} 21. Rc3 {[%emt 0:03:19]} Rdc8 {[%emt 0:19:10]} 22. Rhc1 {[%emt 0:00:48]} Rxc3 {[%emt 0:00:27]} 23. Rxc3 {[%emt 0:00:02]} ({But not} 23. bxc3 Rc8 $11) 23... Bb5 {[%emt 0:00:43]} 24. Bg4 {[%emt 0:09:25]} Re8 {[%emt 0:03:56]} 25. Nf4 $1 {[%emt 0:00:06]} f5 {[%emt 0:02:45]} (25... Kf7 $16) 26. Bh5 {[%emt 0:03:28]} g6 {[%emt 0:00:23]} 27. a4 {[%emt 0:01:34]} Bc4 {[%emt 0:17:45]} 28. Bd1 {[%emt 0:04:02]} ({White should play} 28. Bf3 $18) 28... g5 {[%emt 0:07:02]} (28... e5 $1 $14) 29. Nh5 $1 {[%emt 0:00:10]} Rf8 {[%emt 0:01:04] Against Nf6+} (29... Re7 $16) 30. f4 {[%emt 0:03:20]} (30. b3 $1 $18 {[%cal Rb3c4] is more deadly.} Bf1 31. Rc1) 30... h6 {[%emt 0:02:12]} (30... g4 $16) 31. Ng3 $2 {[%emt 0:02:51]} (31. b3 $18 Bf1 32. Rc6) 31... Nb4 $11 {[%emt 0:01:11]} 32. Be2 {[%emt 0:00:34]} gxf4 {[%emt 0:04:01]} 33. exf4 {[%emt 0:00:12]} Rc8 {[%emt 0:00:28]} 34. b3 $36 {[%emt 0:02:03][%mdl 2048] White is more active.} Ba6 {[%emt 0:00:06]} 35. Rxc8+ {[%emt 0:03:42]} Bxc8 {[%emt 0:00:06][%mdl 4096] Endgame KBN-KBN} 36. Nf1 {[%emt 0:01:18]} a5 {[%emt 0:03:58]} 37. Ne3 {[%emt 0:00:14]} Kf7 {[%emt 0:00:32]} 38. h3 {[%emt 0:00:34]} Kf6 {[%emt 0:02:56]} 39. Bb5 {[%emt 0:00:30]} h5 {[%emt 0:00:32] [#]} (39... Ba6 $11) 40. h4 {[%emt 0:00:00]} ({White should try} 40. Be8 $1 $16) 40... Ba6 {[%emt 0:00:00]} 41. Nf1 {[%emt 0:02:01]} Kg6 {[%emt 0:01:48]} (41... Bxb5 $11 42. axb5 Kf7) 42. Ng3 {[%emt 0:00:35]} (42. Be8+ $1 $14 Kg7 43. Ng3) 42... Kh6 $2 {[%emt 0:01:23][%mdl 8192]} (42... Bxb5 $11 {and Black stays safe.} 43. axb5 Na2) 43. Nf1 $2 {[%emt 0:07:02]} (43. Bd7 $18) 43... Bb7 {[%emt 0:00:14]} (43... Kg6 $11 {keeps the balance.}) 44. Nh2 {[%emt 0:00:28]} Nc6 {[%emt 0:00:19]} ({Better is} 44... Na6) 45. Nf3 $16 {[%emt 0:00:07]} Kg7 {[%emt 0:01:04]} 46. Kc3 {[%emt 0:00:38]} Kf6 {[%emt 0:00:30] [#]} (46... Na7 {was necessary.}) 47. Ne5 $1 $18 {[%emt 0:03:36]} Nxe5 {[%emt 0:00:24]} (47... Nb4 48. Be8 Ke7) 48. fxe5+ {[%emt 0:00:02] KB-KB. White is clearly winning.} Kg7 {[%emt 0:03:58]} 49. Kd2 {[%emt 0:01:42]} Bc8 {[%emt 0:00:07]} 50. Ke3 {[%emt 0:00:05]} Kg6 {[%emt 0:00:10]} 51. Kf4 {[%emt 0:00:04] Threatens to win with Be8+.} Kh6 {[%emt 0:00:15]} 52. Be8 {[%emt 0:00:04]} Kg7 {[%emt 0:00:30]} 53. Kg5 {[%emt 0:00:25]} Ba6 {[%emt 0:00:07]} 54. Bb5 {[%emt 0:00:03] Weighted Error Value: White=0.31/Black=0.43} 1-0

[Event "Reykjavik Open 2022"]
[Site "Reykjavik"]
[Date "2022.04.09"]
[Round "5.17"]
[White "Laurent-Paoli, Pierre"]
[Black "Roe, Simon J"]
[Result "1-0"]
[ECO "C41"]
[WhiteElo "2483"]
[BlackElo "2211"]
[Annotator "RC"]
[PlyCount "81"]
[EventDate "2022.04.06"]
[EventCountry "ISL"]
[SourceTitle "playchess.com"]
[Source "ChessBase"]
[SourceQuality "1"]
[TimeControl "40/5400+30:1800+30"]

1. e4 {[%emt 0:00:22]} e5 {[%emt 0:00:30]} 2. Nf3 {[%emt 0:00:08]} d6 {[%emt 0:00:07]} 3. d4 {[%emt 0:00:16]} exd4 {[%emt 0:00:06]} 4. Nxd4 {[%emt 0:00:04]} Nf6 {[%emt 0:00:08]} 5. Nc3 {[%emt 0:00:05]} Be7 {[%emt 0:01:22]} 6. g3 {[%emt 0:00:56]} O-O {[%emt 0:01:02]} 7. Bg2 {[%emt 0:00:03]} Bd7 {[%emt 0:05:36]} 8. O-O {[%emt 0:02:52]} Re8 {[%emt 0:02:43]} 9. h3 {[%emt 0:05:51]} h6 {[%emt 0:08:15]} 10. g4 {[%emt 0:03:47]} c6 {[%emt 0:13:03]} 11. f4 {[%emt 0:17:51]} d5 {[%emt 0:19:41]} 12. e5 {[%emt 0:01:12]} Nh7 {[%emt 0:05:50]} 13. Nce2 {[%emt 0:05:38]} Bc5 {[%emt 0:04:59]} 14. Kh1 {[%emt 0:05:07]} Na6 {[%emt 0:00:51]} 15. Ng3 {[%emt 0:16:43]} Qb6 {[%emt 0:11:13]} 16. c3 {[%emt 0:01:52]} Nc7 {[%emt 0:00:53]} 17. b4 {[%emt 0:05:42]} Bxd4 {[%emt 0:02:32]} 18. cxd4 {[%emt 0:00:05]} Qxb4 {[%emt 0:02:01]} 19. Be3 {[%emt 0:00:04]} Qa3 {[%emt 0:05:07]} 20. Rf3 {[%emt 0:02:58]} Nb5 {[%emt 0:03:39]} 21. Bg1 {[%emt 0:03:22]} Qa5 {[%emt 0:02:20]} 22. a4 {[%emt 0:00:23]} Nc7 {[%emt 0:00:13]} 23. Nf5 {[%emt 0:01:46]} Bxf5 {[%emt 0:02:18]} 24. gxf5 {[%emt 0:00:19]} Kh8 {[%emt 0:01:15]} 25. Rg3 {[%emt 0:00:28]} Rg8 {[%emt 0:00:30]} 26. Qh5 {[%emt 0:03:16]} g6 {[%emt 0:02:16]} 27. fxg6 {[%emt 0:01:22]} Rxg6 {[%emt 0:00:03]} 28. Rxg6 {[%emt 0:01:47]} fxg6 {[%emt 0:00:02]} 29. Qxg6 {[%emt 0:00:56]} Rg8 {[%emt 0:00:27]} 30. Qd3 {[%emt 0:00:30]} Ne6 {[%emt 0:02:12]} 31. Rf1 {[%emt 0:02:16]} Qxa4 {[%emt 0:01:11]} 32. f5 {[%emt 0:00:28]} Neg5 {[%emt 0:02:20]} 33. Be3 {[%emt 0:05:44]} Ne4 {[%emt 0:01:10]} 34. Bxe4 {[%emt 0:00:09]} dxe4 {[%emt 0:00:01]} 35. Qxe4 {[%emt 0:00:08]} Qb3 {[%emt 0:00:47]} 36. Qf3 {[%emt 0:01:02]} Ng5 {[%emt 0:00:58]} 37. Bxg5 {[%emt 0:00:11]} Qxf3+ {[%emt 0:00:02]} 38. Rxf3 {[%emt 0:00:07]} Rxg5 {[%emt 0:00:40]} 39. f6 {[%emt 0:02:58]} Kg8 {[%emt 0:00:44]} 40. f7+ {[%emt 0:00:00]} Kf8 {[%emt 0:00:00]} 41. e6 {[%emt 0:01:02]} 1-0

[Event "Reykjavik Open 2022"]
[Site "Reykjavik"]
[Date "2022.04.09"]
[Round "5.18"]
[White "Larkin, Vladyslav"]
[Black "Sowray, Peter J"]
[Result "1-0"]
[ECO "D05"]
[WhiteElo "2399"]
[BlackElo "2226"]
[Annotator "TA"]
[PlyCount "69"]
[EventDate "2022.04.06"]
[EventCountry "ISL"]
[SourceTitle "playchess.com"]
[Source "ChessBase"]
[SourceQuality "1"]
[TimeControl "40/5400+30:1800+30"]

{[%evp 23,69,44,36,43,68,56,102,101,95,108,134,127,120,100,97,44,42,32,97,95,110,117,147,147,147,150,149,158,154,110,107,55,60,50,54,54,46,0,0,2,3,16,20,35,28,0,831,795]} 1. d4 {[%emt 0:14:05]} d5 {[%emt 0:00:07]} 2. Nf3 {[%emt 0:00:24]} Nf6 {[%emt 0:00:21]} 3. e3 {[%emt 0:00:27]} e6 {[%emt 0:03:30]} 4. Bd3 {[%emt 0:00:19]} c5 {[%emt 0:01:10]} 5. c3 {[%emt 0:00:08]} Nc6 {[%emt 0:04:44]} 6. Nbd2 {[%emt 0:00:14]} Bd6 {[%emt 0:00:38]} 7. dxc5 {[%emt 0:01:03]} Bxc5 {[%emt 0:00:04]} 8. O-O {[%emt 0:00:15]} O-O {[%emt 0:03:00]} 9. e4 {[%emt 0:01:11]} dxe4 {[%emt 0:06:50]} 10. Nxe4 {[%emt 0:00:05]} Nxe4 {[%emt 0:00:09]} 11. Bxe4 {[%emt 0:00:06]} Qxd1 {[%emt 0:00:09]} 12. Rxd1 {[%emt 0:00:06]} f6 {[%emt 0:11:26]} 13. b4 {[%emt 0:02:13] D05: Colle System with ...e6.} Bb6 {[%emt 0:04:04]} 14. a4 {[%emt 0:09:45][%cal Ba2a4,Ba4a5,Ba5b6][%mdl 32]} Bc7 {[%emt 0:09:59] [#]} (14... Rd8 $1 $14 {should be considered.} 15. Rxd8+ Nxd8) 15. a5 $146 {[%emt 0:20:27] White is better.} ({Predecessor:} 15. Be3 Re8 16. Nd4 Nxd4 17. Bxd4 f5 18. Bf3 Kf7 19. a5 a6 20. Bc5 Kf6 21. Bd6 {½-½ (53) De Jager,L (1788)-Van Randen,F (1863) Leiden 2018}) 15... a6 {[%emt 0:00:33]} 16. Be3 {[%emt 0:22:25]} e5 {[%emt 0:17:30]} 17. Bb6 {[%emt 0:00:10]} Bxb6 {[%emt 0:01:29]} 18. axb6 {[%emt 0:00:04][%cal Ob4b5] aiming for b5!} Rb8 {[%emt 0:07:06]} 19. Ne1 {[%emt 0:14:08]} (19. Bd5+ $16 Kh8 20. Nd2 (20. Bxc6 bxc6 21. Rd6 Rxb6 $14)) 19... Ne7 $1 $14 {[%emt 0:01:19]} 20. Bc2 {[%emt 0:07:24]} Bg4 {[%emt 0:06:48]} ({Better is} 20... Bf5 $14) 21. f3 {[%emt 0:01:19]} Bh5 {[%emt 0:00:29]} 22. Nd3 {[%emt 0:00:26] Black must now prevent Nc5.} Nc8 {[%emt 0:01:05] [#]} 23. Nc5 $1 {[%emt 0:00:32]} Nxb6 {[%emt 0:01:41]} 24. Rd6 {[%emt 0:00:19]} Nc8 {[%emt 0:04:04]} 25. Rd7 {[%emt 0:00:05] 0x0.0021271f002edp-1022s more active pieces. The black rooks are badly placed.} Nb6 {[%emt 0:01:36]} 26. Bb3+ {[%emt 0:02:22]} Bf7 {[%emt 0:01:11]} 27. Rxf7 {[%emt 0:00:05]} (27. Rd6 $16 Bxb3 28. Rxb6) 27... Rxf7 {[%emt 0:00:02]} 28. Rd1 $1 {[%emt 0:00:06] Rd6 is the strong threat.} Kf8 $1 {[%emt 0:03:14]} 29. Rd6 {[%emt 0:00:06]} Na8 {[%emt 0:00:37] Threatens to win with ...Rc7.} 30. Bxf7 {[%emt 0:01:42]} Kxf7 {[%emt 0:00:28]} 31. Rd7+ {[%emt 0:00:07]} Kg6 {[%emt 0:01:07]} 32. Ne6 {[%emt 0:00:21]} Nb6 {[%emt 0:00:55]} 33. Rxg7+ {[%emt 0:00:04]} Kh6 $1 {[%emt 0:00:06]} 34. Rg4 {[%emt 0:01:41] Threatening mate with Ng7.} Rc8 $2 {[%emt 0:02:57][%mdl 8192] [#]} (34... Nd5 $11) 35. Ng7 $1 {[%emt 0:00:34] Weighted Error Value: White=0.11 (very precise) /Black=0.13 (very precise)} 1-0

[Event "Reykjavik Open 2022"]
[Site "Reykjavik"]
[Date "2022.04.09"]
[Round "5.19"]
[White "Thorfinnsson, Bragi"]
[Black "Lohia, Sohum"]
[Result "1/2-1/2"]
[ECO "B14"]
[WhiteElo "2419"]
[BlackElo "2251"]
[Annotator "NA RC"]
[PlyCount "37"]
[EventDate "2022.04.06"]
[EventCountry "ISL"]
[SourceTitle "playchess.com"]
[Source "ChessBase"]
[SourceQuality "1"]
[TimeControl "40/5400+30:1800+30"]

1. d4 {[%emt 0:00:36]} Nf6 {[%emt 0:00:11]} 2. c4 {[%emt 0:00:16]} e6 {[%emt 0:00:08]} 3. Nc3 {[%emt 0:00:58]} Bb4 {[%emt 0:00:08]} 4. Nf3 {[%emt 0:02:08]} O-O {[%emt 0:00:49]} 5. e3 {[%emt 0:01:06]} d5 {[%emt 0:01:43]} 6. Bd2 {[%emt 0:00:46]} c5 {[%emt 0:06:53]} 7. a3 {[%emt 0:02:52]} Bxc3 {[%emt 0:06:44]} 8. Bxc3 {[%emt 0:00:10]} Ne4 {[%emt 0:04:09]} 9. Rc1 {[%emt 0:10:11]} Nxc3 {[%emt 0:01:48]} 10. Rxc3 {[%emt 0:00:09]} cxd4 {[%emt 0:04:21]} 11. exd4 {[%emt 0:02:05]} Nd7 {[%emt 0:04:35]} 12. Bd3 {[%emt 0:05:02]} dxc4 {[%emt 0:01:01]} 13. Rxc4 {[%emt 0:06:02]} b6 {[%emt 0:04:20]} 14. O-O {[%emt 0:02:36]} Bb7 {[%emt 0:04:50]} 15. Qe2 {[%emt 0:03:43]} Nf6 {[%emt 0:04:18]} 16. Rfc1 {[%emt 0:01:32]} Qd6 {[%emt 0:02:02]} 17. h3 {[%emt 0:02:54]} Rac8 {[%emt 0:08:43]} 18. Rxc8 {[%emt 0:08:16]} Rxc8 {[%emt 0:00:14]} 19. Rxc8+ {[%emt 0:01:37]} 1/2-1/2